Workbook

Sheet 43
A1: Расшифровка к бюджету на 2026 год по МБОУ "Средняя общеобразовательная школа № 43" Ново-Савиновского района г.Казани
A3: Наименование | B3: Сумма | C3: ДКР 302 (НФЗ) расходы связанные с учебным процессом | D3: ДКР 304 (НСИ) расходы связанные с содержанием имущества | E3: ДКР 308 (НСИ)
A4: 221001, услуги связи | B4: =SUM(C4:G4) -> 10,000.00 | D4: 10,000.00
A5: 221099, услуги связи
A7: 225002, всего | B7: =SUM(C7:G7) -> 20,000.00 | C7: =SUM(C8:C10) -> 0.00 | D7: 20,000.00 | E7: 0.00
A8: в т.ч. обслуживание конт площадки | B8: 0.00
A9: в т.ч.сброс снега | B9: 20,000.00 | D9: 20,000.00
A10: в т.ч.дератиз, дезинсекц | B10: 0.00
B11: 0.00
A12: 223017, вывоз мусора | B12: 279,037.35 | D12: 279,037.35
A13: 223099, прочие ком.услуги | B13: 0.00
A14: 225003, опрессовка | B14: 53,756.52 | D14: 53,756.52
A15: 225007, текущ ремонт | B15: 70,117.20 | D15: 70,117.20
A16: 225010 заправка картриджа | B16: 20,000.00 | D16: 20,000.00
A17: 225011 техническое обслуживание | B17: 0.00
A18: 225012 ремонт трансп.средств | B18: 0.00
A19: 225013 технический осмотр | B19: 0.00
A20: 225014 содержание транс.средств | B20: 0.00
A22: 225015 ВСЕГО | B22: =SUM(C22:G22) -> 153,903.37 | C22: =SUM(C23:C30) -> 0.00 | D22: 153,903.37 | E22: =SUM(E23:E30) -> 0.00
A23: в т.ч. поверка весов | B23: 6,000.00 | D23: 6,000.00
A24: в т.ч. ремонт оборудования | B24: 65,000.00 | D24: 65,000.00
A25: в т.ч. технич.обслуживание узлов погодного регулирования и теплообменников | B25: 82,903.37 | D25: 82,903.37
A26: в т.ч.декальцинация | B26: 0.00
A27: в т.ч.техническое обслуживание венткамеры | B27: 0.00 | E27: =SUM('[1]7:179'!E27) -> 0.00
A28: в т.ч.техническое обслуживание АТС | B28: 0.00
A29: в т.ч.обслуживание эл.платформы для детей с ОВЗ | B29: 0.00
A30: в т.ч.обслуживание бассейна | B30: 0.00
A31: в т.ч.Глонасс | B31: 0.00
A33: 225035 техн.обслуживание приборов учета | B33: =SUM(C33:E33) -> 19,469.17 | D33: 19,469.17
A35: 225098 ВСЕГО | B35: =SUM(C35:G35) -> 0.00 | C35: =SUM(C36:C39) -> 0.00 | D35: 0.00 | E35: 0.00
A36: в т.ч.лабораторные исследования | B36: 0.00
A37: в т.ч обслуживание трубопровода | B37: 0.00
A38: в т.ч. Техническое освидетельствование платформы для детей с ОВЗ | B38: 0.00
A39: Утилизация ламп | B39: 0.00
A40: 225/900200 Обслуживание кухонного оборудования | B40: 0.00
A42: 226001, подписка | B42: =SUM(C42:G42) -> 20,000.00 | D42: 20,000.00
A44: 226015, ФИС ФРДО | B44: =SUM(C44:G44) -> 30,120.00 | C44: 27,120.00 | D44: 3,000.00
A46: 226031, мед.осмотр водителя | B46: =SUM(C46:G46) -> 0.00
A48: 226050, услуги охраны ЧОП | B48: =SUM(C48:G48) -> 709,560.00 | D48: 709,560.00
A50: 226052, всего | B50: =SUM(C50:G50) -> 13,500.00 | C50: =SUM(C51:C54) -> 0.00 | D50: =SUM(D51:D54) -> 13,500.00 | E50: =SUM(E51:E54) -> 0.00
A51: в т.ч. курсы по гигиеническому обучению работников и руководителей | B51: 13,500.00 | D51: 13,500.00
A52: в т.ч. курсы по гигиеническому обучению кухонных работников | B52: 0.00
A53: в т.ч. курсы электробезопасность | B53: 0.00
A54: в т.ч. курсы тепловых энергоустановок | B54: 0.00
A56: 226098, всего | B56: =SUM(C56:G56) -> 30,752.00 | C56: =SUM(C57:C62) -> 0.00 | D56: 30,752.00 | E56: 0.00 | G56: =SUM(G57:G62) -> 0 | H56: =SUM(H57:H62) -> 0 | I56: 0
A57: в т.ч. Обслуживание автоматизированного учета элэнергии | B57: 10,752.00 | D57: 10,752.00
A58: в т.ч.специальная оценка условий труда (аттестация раб.мест) | B58: 0.00
A59: в т.ч. лабораторные исследования | B59: 20,000.00 | D59: 20,000.00
A60: в т.ч. радиационные обследования в кабинетах физики,химии,обж | B60: 0.00
A61: в т.ч. идентификация транс.ср-ва в системе ГАИС ЭРК | B61: 0.00
A62: в т.ч. Передача данных и связь РФ | B62: 0.00
B63: 0.00
A64: 227001 услуги по страхованию | B64: 0.00
A66: 227002, ОСАГО | B66: =SUM(C66:G66) -> 0.00
A68: П.310010, Приобретение учебников для общеобразовательных организаций | B68: =SUM(C68:G68) -> 1,517,356.00 | C68: 1,517,356.00
A70: Н.310099, прочие расходы по увеличению стоимости основных средств | B70: =SUM(C70:G70) -> 642,880.00 | C70: 572,880.00 | D70: 70,000.00
A72: 341006, медикаменты | B72: =SUM(C72:G72) -> 8,528.11 | D72: 8,528.11
A74: 343001, ГСМ | B74: =SUM(C74:G74) -> 0.00
A76: 343015, моторные масла и спец.смазки | B76: =SUM(C76:G76) -> 0.00
A78: 344099, строительные материалы, в т.ч. сантехника, окна, двери | B78: =SUM(C78:G78) -> 45,000.00 | D78: 45,000.00
A80: 346004, закупка материалов, используемых в процессе обучения (канцтовары для детей, раб.тетради, бумага и т.д.) | B80: =SUM(C80:G80) -> 0.00
A82: 346013, автозапчасти | B82: =SUM(C82:G82) -> 0.00
A84: 346014, приобретение автошин | B84: =SUM(C84:G84) -> 0.00
A86: 346017, приобретение хоз, канц товаров для сотрудников, моющие ср-ва, приобретение лампочек, губки, салфетки, мешки для мусора, перчатки и т.д. | B86: =SUM(C86:G86) -> 182,608.68 | D86: 182,608.68
A88: 346098, Песчано-соляная смесь | B88: =SUM(C88:G88) -> 10,000.00 | D88: 10,000.00
A89: 346099, Прочие расходы по увеличению стоимости матер.запасов | B89: =SUM(C89:G89) -> 25,000.00 | C89: =SUM(C90:C90) -> 0.00 | D89: =SUM(D90:D90) -> 25,000.00 | E89: =SUM(E90:E90) -> 0.00
A90: в т.ч. прочие расходы по увеличению стоимости мат запасов (прочие хозяйственные товары в т.ч. посуда, тазы, кух.утварь, лопаты,метла без черенков, черенки, замки и т.д. кроме выше указанного товара в ст. 346017) | B90: =SUM(C90:G90) -> 25,000.00 | D90: 25,000.00
A91: 349011 призы, сувениры | B91: =SUM(C91:G91) -> 0.00
A92: Всего по учреждению на 2025 год | B92: =B4+B7+B12+B14+B15+B16+B22+B33+B35+B40+B42+B50+B56+B64+B70+B72+B86+B89+B13+B74+B76+B78+B80+B82+B68+B66+B44+B17+B18+B19+B20+B84+B91+B5+B63+B88+B48 -> 3,861,588.40 | C92: =C4+C7+C12+C14+C15+C16+C22+C33+C35+C40+C42+C50+C56+C64+C70+C72+C86+C89+C13+C74+C76+C78+C80+C82+C68+C66+C44+C17+C18+C19+C20+C84+C91+C5+C63+C88+C48 -> 2,117,356.00 | D92: =D4+D7+D12+D14+D15+D16+D22+D33+D35+D40+D42+D50+D56+D64+D70+D72+D86+D89+D13+D74+D76+D78+D80+D82+D68+D66+D44+D17+D18+D19+D20+D84+D91+D5+D63+D88+D48 -> 1,744,232.40 | E92: 0.00 | G92: =G4+G7+G12+G14+G15+G16+G22+G33+G35+G40+G42+G50+G56+G64+G70+G72+G86+G89+G13+G74+G76+G78+G80+G82+G68+G66+G44+G17+G18+G19+G20+G84+G48 -> 0.00 | H92: =H4+H7+H12+H14+H15+H16+H22+H33+H35+H40+H42+H50+H56+H64+H70+H72+H86+H89+H13+H74+H76+H78+H80+H82+H68+H66+H44+H17+H18+H19+H20+H84+H48+H5 -> 0.00 | I92: =I4+I7+I12+I14+I15+I16+I22+I33+I35+I40+I42+I50+I56+I64+I70+I72+I86+I89+I13+I74+I76+I78+I80+I82+I68+I66+I44+I17+I18+I19+I20+I84+I48 -> 0.00
